[Event "*** Titled Tuesday Blitz"]
[Site "Chess.com"]
[Date "2020.04.14"]
[Round "7"]
[White "FeketeBarika"]
[Black "Cuchulin"]
[Result "0-1"]
[WhiteElo "2266"]
[BlackElo "2136"]
[TimeControl "180+1"]
[EndTime "11:14:45 PDT"]
[Termination "Cuchulin won by resignation"]

1. Nf3 {[%clk 0:02:38.7]} 1... c5 {[%clk 0:02:58.2]} 2. g3 {[%clk 0:02:32.9]}
2... Nc6 {[%clk 0:02:58.4]} 3. Bg2 {[%clk 0:02:30.1]} 3... g6 {[%clk 0:02:59.3]}
4. c4 {[%clk 0:02:26.6]} 4... Bg7 {[%clk 0:02:58.9]} 5. O-O {[%clk 0:02:27.5]}
5... Nf6 {[%clk 0:02:59.1]} 6. Nc3 {[%clk 0:02:14.3]} 6... d5 {[%clk 0:02:59]}
7. cxd5 {[%clk 0:02:13.3]} 7... Nxd5 {[%clk 0:02:59.9]} 8. Nxd5 {[%clk
0:02:05.6]} 8... Qxd5 {[%clk 0:03:00.8]} 9. d3 {[%clk 0:02:06]} 9... O-O {[%clk
0:02:59.4]} 10. Nd2 {[%clk 0:02:01.6]} 10... Qh5 {[%clk 0:02:58.2]} 11. e3
{[%clk 0:01:47.3]} 11... Bg4 {[%clk 0:02:55]} 12. Bf3 {[%clk 0:01:46.5]} 12...
Bxf3 {[%clk 0:02:50]} 13. Qxf3 {[%clk 0:01:47.4]} 13... Qxf3 {[%clk 0:02:47.2]}
14. Nxf3 {[%clk 0:01:34.7]} 14... Rfd8 {[%clk 0:02:45.1]} 15. Rd1 {[%clk
0:01:25.1]} 15... Rd7 {[%clk 0:02:45.1]} 16. Kf1 {[%clk 0:01:16.5]} 16... Rad8
{[%clk 0:02:42.9]} 17. Ke2 {[%clk 0:01:08.1]} 17... Nb4 {[%clk 0:02:34.6]} 18.
Ne1 {[%clk 0:01:04.5]} 18... e5 {[%clk 0:02:16.3]} 19. a3 {[%clk 0:00:27.2]}
19... Nc6 {[%clk 0:02:15.8]} 20. e4 {[%clk 0:00:22.8]} 20... c4 {[%clk 0:02:15]}
21. Bd2 {[%clk 0:00:20.6]} 21... cxd3+ {[%clk 0:02:11.7]} 22. Kf1 {[%clk
0:00:21.1]} 22... Nd4 {[%clk 0:01:51.5]} 23. Rac1 {[%clk 0:00:20.7]} 23... Nb3
{[%clk 0:01:50.4]} 24. Rc3 {[%clk 0:00:20.6]} 24... Nxd2+ {[%clk 0:01:43.2]} 25.
Rxd2 {[%clk 0:00:21.5]} 25... Bh6 {[%clk 0:01:40.4]} 26. Rdxd3 {[%clk
0:00:21.4]} 26... Rxd3 {[%clk 0:01:23]} 27. Rxd3 {[%clk 0:00:21.9]} 27... Rxd3
{[%clk 0:01:20.8]} 28. Nxd3 {[%clk 0:00:22.8]} 28... f6 {[%clk 0:01:21.2]} 29.
Ke2 {[%clk 0:00:22.9]} 29... Kf7 {[%clk 0:01:19.8]} 30. Nc5 {[%clk 0:00:23.3]}
30... b6 {[%clk 0:01:19]} 31. Na6 {[%clk 0:00:23.1]} 31... Bc1 {[%clk
0:01:17.4]} 32. Nb4 {[%clk 0:00:20.1]} 32... Bxb2 {[%clk 0:01:16]} 33. a4 {[%clk
0:00:20.2]} 33... Ke6 {[%clk 0:01:11.9]} 34. Nd5 {[%clk 0:00:19.2]} 34... Bd4
{[%clk 0:01:10.1]} 35. f3 {[%clk 0:00:19.2]} 35... f5 {[%clk 0:01:09.9]} 36. h3
{[%clk 0:00:19]} 36... fxe4 {[%clk 0:01:09.4]} 37. fxe4 {[%clk 0:00:19.9]} 37...
Kd6 {[%clk 0:01:08.5]} 38. Kd3 {[%clk 0:00:20.1]} 38... Kc5 {[%clk 0:01:08.4]}
39. g4 {[%clk 0:00:19.6]} 39... h6 {[%clk 0:01:01]} 40. h4 {[%clk 0:00:19]}
40... h5 {[%clk 0:00:59.2]} 41. gxh5 {[%clk 0:00:16.3]} 41... gxh5 {[%clk
0:00:58.8]} 42. Nf6 {[%clk 0:00:16.4]} 42... Bf2 {[%clk 0:00:58.2]} 43. Nxh5
{[%clk 0:00:16.8]} 43... Bxh4 {[%clk 0:00:58.2]} 44. Ng7 {[%clk 0:00:16.6]}
44... Kb4 {[%clk 0:00:55.2]} 45. Nf5 {[%clk 0:00:17]} 45... Bf2 {[%clk
0:00:53.8]} 46. a5 {[%clk 0:00:16.6]} 46... Kxa5 {[%clk 0:00:53.4]} 47. Kc4
{[%clk 0:00:16.5]} 47... b5+ {[%clk 0:00:34.8]} 48. Kd5 {[%clk 0:00:16.2]} 48...
b4 {[%clk 0:00:35.1]} 49. Kc4 {[%clk 0:00:15.3]} 49... Ka4 {[%clk 0:00:35.2]}
50. Ne7 {[%clk 0:00:13.3]} 50... b3 {[%clk 0:00:35.3]} 51. Nd5 {[%clk
0:00:11.1]} 51... Be1 {[%clk 0:00:30.8]} 52. Kd3 {[%clk 0:00:10]} 52... Ka3
{[%clk 0:00:28.4]} 53. Ne3 {[%clk 0:00:09.9]} 53... b2 {[%clk 0:00:27.6]} 54.
Nc4+ {[%clk 0:00:09.5]} 54... Ka2 {[%clk 0:00:27]} 55. Nxb2 {[%clk 0:00:10]}
55... Kxb2 {[%clk 0:00:27.1]} 56. Kc4 {[%clk 0:00:10.9]} 56... Bf2 {[%clk
0:00:26.4]} 57. Kb5 {[%clk 0:00:10.8]} 57... Bd4 {[%clk 0:00:26.3]} 0-1

[Event "*** Titled Tuesday Blitz"]
[Site "Chess.com"]
[Date "2020.04.14"]
[Round "7"]
[White "Harry_Rakkel"]
[Black "Gabrielian_Artur"]
[Result "1-0"]
[WhiteElo "2552"]
[BlackElo "2666"]
[TimeControl "180+1"]
[EndTime "11:14:46 PDT"]
[Termination "Harry_Rakkel won on time"]

1. d4 {[%clk 0:03:00.9]} 1... Nf6 {[%clk 0:02:59.7]} 2. c4 {[%clk 0:03:00.2]}
2... c5 {[%clk 0:02:59.7]} 3. d5 {[%clk 0:02:58.3]} 3... e6 {[%clk 0:02:59.8]}
4. Nc3 {[%clk 0:02:57.4]} 4... exd5 {[%clk 0:03:00.1]} 5. cxd5 {[%clk
0:02:58.3]} 5... d6 {[%clk 0:03:00.3]} 6. e4 {[%clk 0:02:57.3]} 6... g6 {[%clk
0:03:00.4]} 7. f4 {[%clk 0:02:54.4]} 7... Bg7 {[%clk 0:02:59.7]} 8. Bb5+ {[%clk
0:02:54]} 8... Nfd7 {[%clk 0:03:00.2]} 9. a4 {[%clk 0:02:49.9]} 9... O-O {[%clk
0:02:59.6]} 10. Nf3 {[%clk 0:02:49.5]} 10... Na6 {[%clk 0:03:00.2]} 11. O-O
{[%clk 0:02:48.3]} 11... Nb4 {[%clk 0:03:00.3]} 12. Kh1 {[%clk 0:02:44.3]} 12...
a6 {[%clk 0:02:59.2]} 13. Bc4 {[%clk 0:02:40.9]} 13... Nb6 {[%clk 0:02:25.9]}
14. Bd3 {[%clk 0:02:37.2]} 14... Nxd3 {[%clk 0:02:20]} 15. Qxd3 {[%clk 0:02:36]}
15... Re8 {[%clk 0:01:51.4]} 16. Be3 {[%clk 0:02:27.3]} 16... Nd7 {[%clk
0:01:18.9]} 17. Nd2 {[%clk 0:02:22.4]} 17... Nf6 {[%clk 0:01:09.4]} 18. Bg1
{[%clk 0:02:18.6]} 18... b6 {[%clk 0:01:08.7]} 19. Nc4 {[%clk 0:02:16.9]} 19...
Bb7 {[%clk 0:01:08.9]} 20. Rad1 {[%clk 0:02:04.4]} 20... b5 {[%clk 0:01:05.6]}
21. axb5 {[%clk 0:02:03]} 21... axb5 {[%clk 0:01:06.5]} 22. Nxb5 {[%clk
0:01:59.8]} 22... Nxe4 {[%clk 0:01:06.6]} 23. f5 {[%clk 0:01:46.9]} 23... Ba6
{[%clk 0:01:00.9]} 24. Nba3 {[%clk 0:01:36.8]} 24... Bxb2 {[%clk 0:00:56.6]} 25.
Qf3 {[%clk 0:01:29]} 25... Bg7 {[%clk 0:00:49.3]} 26. Rfe1 {[%clk 0:01:20.5]}
26... Nc3 {[%clk 0:00:25.1]} 27. Rc1 {[%clk 0:01:19.9]} 27... Rxe1 {[%clk
0:00:23.8]} 28. Rxe1 {[%clk 0:01:20.5]} 28... Bb7 {[%clk 0:00:23.6]} 29. fxg6
{[%clk 0:01:09.3]} 29... hxg6 {[%clk 0:00:23.5]} 30. Qg3 {[%clk 0:01:01.4]}
30... Bxd5 {[%clk 0:00:20.7]} 31. Nxd6 {[%clk 0:00:59]} 31... Qd7 {[%clk
0:00:15.1]} 32. Bxc5 {[%clk 0:00:56.8]} 32... Be6 {[%clk 0:00:09.7]} 33. Nc2
{[%clk 0:00:50.3]} 33... Qc6 {[%clk 0:00:09.1]} 34. Bg1 {[%clk 0:00:42]} 34...
Nd5 {[%clk 0:00:08.4]} 35. Ne3 {[%clk 0:00:38.1]} 35... Nxe3 {[%clk 0:00:08.1]}
36. Bxe3 {[%clk 0:00:36.9]} 36... Rd8 {[%clk 0:00:07.5]} 37. Bf4 {[%clk
0:00:35.8]} 37... Qd5 {[%clk 0:00:07.2]} 38. h4 {[%clk 0:00:33.7]} 38... Qh5
{[%clk 0:00:06.3]} 39. Bg5 {[%clk 0:00:30.4]} 39... Ra8 {[%clk 0:00:05.9]} 40.
Ne4 {[%clk 0:00:28.8]} 40... Qg4 {[%clk 0:00:05.2]} 41. Qxg4 {[%clk 0:00:27.8]}
41... Bxg4 {[%clk 0:00:05.4]} 42. Nf6+ {[%clk 0:00:28.3]} 42... Bxf6 {[%clk
0:00:05.8]} 43. Bxf6 {[%clk 0:00:28.9]} 43... Be6 {[%clk 0:00:06.1]} 44. Rd1
{[%clk 0:00:27.8]} 44... Kh7 {[%clk 0:00:05.9]} 45. Kh2 {[%clk 0:00:27.8]} 45...
Kh6 {[%clk 0:00:04.5]} 46. Rd4 {[%clk 0:00:27.2]} 46... Kh5 {[%clk 0:00:04.1]}
47. Re4 {[%clk 0:00:24.2]} 47... Ra5 {[%clk 0:00:03.2]} 48. Bg5 {[%clk
0:00:21.9]} 48... Rb5 {[%clk 0:00:01.1]} 49. Rd4 {[%clk 0:00:21.8]} 1-0

[Event "*** Titled Tuesday Blitz"]
[Site "Chess.com"]
[Date "2020.04.14"]
[Round "7"]
[White "viktorskliarov"]
[Black "Keks2017"]
[Result "1-0"]
[WhiteElo "2654"]
[BlackElo "2487"]
[TimeControl "180+1"]
[EndTime "11:14:46 PDT"]
[Termination "viktorskliarov won on time"]

1. e4 {[%clk 0:03:00.9]} 1... d6 {[%clk 0:02:59.5]} 2. d4 {[%clk 0:03:00.3]}
2... Nf6 {[%clk 0:02:59.3]} 3. Nc3 {[%clk 0:03:00.3]} 3... g6 {[%clk 0:02:59.4]}
4. f3 {[%clk 0:02:58.8]} 4... c6 {[%clk 0:02:58.5]} 5. Be3 {[%clk 0:02:58.9]}
5... Nbd7 {[%clk 0:02:58.2]} 6. Qd2 {[%clk 0:02:58.9]} 6... b5 {[%clk 0:02:58]}
7. O-O-O {[%clk 0:02:58.3]} 7... Qa5 {[%clk 0:02:57.6]} 8. Kb1 {[%clk 0:02:58]}
8... Bg7 {[%clk 0:02:57.5]} 9. g4 {[%clk 0:02:57.5]} 9... Nb6 {[%clk 0:02:55.7]}
10. b3 {[%clk 0:02:56.5]} 10... h5 {[%clk 0:02:42]} 11. gxh5 {[%clk 0:02:49.8]}
11... Nxh5 {[%clk 0:02:40.8]} 12. Bd3 {[%clk 0:02:40.5]} 12... Ng3 {[%clk
0:02:35.1]} 13. Nge2 {[%clk 0:02:20.5]} 13... Nxh1 {[%clk 0:02:31.3]} 14. Rxh1
{[%clk 0:02:21.4]} 14... Bd7 {[%clk 0:02:22.8]} 15. h4 {[%clk 0:02:18.2]} 15...
b4 {[%clk 0:02:21.2]} 16. Nd1 {[%clk 0:02:16.3]} 16... c5 {[%clk 0:02:20.9]} 17.
Nb2 {[%clk 0:01:55.1]} 17... Rc8 {[%clk 0:02:07.5]} 18. a4 {[%clk 0:01:52.4]}
18... c4 {[%clk 0:01:56]} 19. Nxc4 {[%clk 0:01:48.3]} 19... Nxc4 {[%clk
0:01:55.5]} 20. Bxc4 {[%clk 0:01:47.7]} 20... Bxa4 {[%clk 0:01:49.8]} 21. Qd3
{[%clk 0:01:44.1]} 21... Bd7 {[%clk 0:01:47]} 22. Nf4 {[%clk 0:01:28.8]} 22...
e6 {[%clk 0:01:39.1]} 23. h5 {[%clk 0:01:11.2]} 23... gxh5 {[%clk 0:01:33.1]}
24. Rg1 {[%clk 0:01:10.9]} 24... Bf8 {[%clk 0:01:25.7]} 25. Bc1 {[%clk
0:00:58.7]} 25... h4 {[%clk 0:01:23.9]} 26. Nh3 {[%clk 0:00:54.8]} 26... Be7
{[%clk 0:01:16.9]} 27. Qe2 {[%clk 0:00:30.7]} 27... Qc7 {[%clk 0:01:07.4]} 28.
f4 {[%clk 0:00:26.7]} 28... a5 {[%clk 0:01:05.3]} 29. f5 {[%clk 0:00:24.3]}
29... a4 {[%clk 0:01:02.6]} 30. fxe6 {[%clk 0:00:22.2]} 30... Bxe6 {[%clk
0:01:01.4]} 31. Bxe6 {[%clk 0:00:21.8]} 31... fxe6 {[%clk 0:01:01.4]} 32. Nf4
{[%clk 0:00:20.9]} 32... axb3 {[%clk 0:00:51]} 33. cxb3 {[%clk 0:00:20.5]} 33...
h3 {[%clk 0:00:34]} 34. Nxe6 {[%clk 0:00:19.3]} 34... Qb7 {[%clk 0:00:19.7]} 35.
d5 {[%clk 0:00:17.4]} 35... Rc3 {[%clk 0:00:18.6]} 36. Bb2 {[%clk 0:00:16.5]}
36... Rxb3 {[%clk 0:00:17.5]} 37. Qg4 {[%clk 0:00:15.3]} 37... h2 {[%clk
0:00:16.5]} 38. Rh1 {[%clk 0:00:11.3]} 38... Qb5 {[%clk 0:00:16.3]} 39. Nc7+
{[%clk 0:00:10]} 39... Kd8 {[%clk 0:00:15.7]} 40. Nxb5 {[%clk 0:00:10.3]} 40...
Rf8 {[%clk 0:00:15.3]} 41. Nd4 {[%clk 0:00:09.6]} 41... Rd3 {[%clk 0:00:14.4]}
42. Ne6+ {[%clk 0:00:09.7]} 42... Ke8 {[%clk 0:00:14.6]} 43. Nxf8 {[%clk
0:00:10.2]} 43... Kxf8 {[%clk 0:00:14.8]} 44. Rxh2 {[%clk 0:00:10.6]} 44... Rd1+
{[%clk 0:00:13.5]} 45. Qxd1 {[%clk 0:00:09.5]} 1-0

[Event "*** Titled Tuesday Blitz"]
[Site "Chess.com"]
[Date "2020.04.14"]
[Round "7"]
[White "Sashadav97"]
[Black "garicradomir"]
[Result "1-0"]
[WhiteElo "2602"]
[BlackElo "2407"]
[TimeControl "180+1"]
[EndTime "11:14:46 PDT"]
[Termination "Sashadav97 won by resignation"]

1. d4 {[%clk 0:03:00.9]} 1... Nf6 {[%clk 0:02:59.3]} 2. c4 {[%clk 0:02:59.7]}
2... Nc6 {[%clk 0:02:59.3]} 3. Nc3 {[%clk 0:02:57.8]} 3... e5 {[%clk 0:02:59.3]}
4. d5 {[%clk 0:02:56.4]} 4... Ne7 {[%clk 0:02:59.6]} 5. Nf3 {[%clk 0:02:55.4]}
5... Ng6 {[%clk 0:02:56.5]} 6. h4 {[%clk 0:02:55.3]} 6... h5 {[%clk 0:02:56.4]}
7. Bg5 {[%clk 0:02:54.2]} 7... Be7 {[%clk 0:02:53.8]} 8. e3 {[%clk 0:02:52.9]}
8... d6 {[%clk 0:02:53.6]} 9. Qc2 {[%clk 0:02:51.3]} 9... Nd7 {[%clk 0:02:30.8]}
10. Bd3 {[%clk 0:02:38.4]} 10... Ngf8 {[%clk 0:02:30.2]} 11. O-O-O {[%clk
0:01:39.2]} 11... Nc5 {[%clk 0:02:29.6]} 12. Bxe7 {[%clk 0:01:33.5]} 12... Qxe7
{[%clk 0:02:29.1]} 13. Bf5 {[%clk 0:01:34.1]} 13... Bxf5 {[%clk 0:02:00.7]} 14.
Qxf5 {[%clk 0:01:35]} 14... Qf6 {[%clk 0:02:00.4]} 15. Qc2 {[%clk 0:01:34.8]}
15... Qg6 {[%clk 0:01:54.8]} 16. Nb5 {[%clk 0:01:21.8]} 16... Qxc2+ {[%clk
0:01:33.4]} 17. Kxc2 {[%clk 0:01:22.7]} 17... Kd7 {[%clk 0:01:33.6]} 18. Ng5
{[%clk 0:01:04.3]} 18... f6 {[%clk 0:01:28.8]} 19. Nf3 {[%clk 0:00:59.7]} 19...
Ne4 {[%clk 0:01:22.9]} 20. Rhf1 {[%clk 0:00:58.2]} 20... Ng6 {[%clk 0:01:12.5]}
21. Nc3 {[%clk 0:00:57.8]} 21... Nxc3 {[%clk 0:00:58.6]} 22. Kxc3 {[%clk
0:00:58.7]} 22... Ne7 {[%clk 0:00:54.4]} 23. g3 {[%clk 0:00:57.7]} 23... Rag8
{[%clk 0:00:53.5]} 24. b4 {[%clk 0:00:55.6]} 24... g5 {[%clk 0:00:51.8]} 25. c5
{[%clk 0:00:54]} 25... Nf5 {[%clk 0:00:47.8]} 26. Rh1 {[%clk 0:00:52.7]} 26...
g4 {[%clk 0:00:26.1]} 27. Nd2 {[%clk 0:00:51.6]} 27... b6 {[%clk 0:00:23.1]} 28.
Ne4 {[%clk 0:00:48.8]} 28... Rf8 {[%clk 0:00:21.9]} 29. Kb3 {[%clk 0:00:46.3]}
29... bxc5 {[%clk 0:00:20.3]} 30. bxc5 {[%clk 0:00:46.1]} 30... Rb8+ {[%clk
0:00:19.9]} 31. Kc3 {[%clk 0:00:45.2]} 31... Ke7 {[%clk 0:00:19.8]} 32. Rb1
{[%clk 0:00:44.3]} 32... Nh6 {[%clk 0:00:18.3]} 33. c6 {[%clk 0:00:42]} 33...
Rb6 {[%clk 0:00:17]} 34. Rxb6 {[%clk 0:00:38.5]} 34... axb6 {[%clk 0:00:16.8]}
35. Kb4 {[%clk 0:00:38.6]} 35... Ra8 {[%clk 0:00:16.4]} 36. a4 {[%clk
0:00:37.6]} 36... Ra5 {[%clk 0:00:15.6]} 37. Nc3 {[%clk 0:00:38.1]} 37... Nf5
{[%clk 0:00:13.6]} 38. Nb5 {[%clk 0:00:37.8]} 38... Kd8 {[%clk 0:00:13.2]} 39.
Rd1 {[%clk 0:00:35.8]} 39... Ne7 {[%clk 0:00:13.2]} 40. Nc3 {[%clk 0:00:34.7]}
40... Nc8 {[%clk 0:00:11.3]} 41. f3 {[%clk 0:00:23.8]} 41... gxf3 {[%clk
0:00:07.6]} 42. e4 {[%clk 0:00:23.4]} 42... Ke7 {[%clk 0:00:08.5]} 43. Rf1
{[%clk 0:00:23.3]} 43... Na7 {[%clk 0:00:08.2]} 44. Rxf3 {[%clk 0:00:20.5]}
44... Rc5 {[%clk 0:00:08.5]} 45. Rf5 {[%clk 0:00:19.8]} 45... b5 {[%clk
0:00:08.7]} 46. axb5 {[%clk 0:00:19.5]} 46... Nc8 {[%clk 0:00:09.1]} 47. Rxh5
{[%clk 0:00:19.5]} 47... Nb6 {[%clk 0:00:09.5]} 48. Rh7+ {[%clk 0:00:20.1]}
48... Kd8 {[%clk 0:00:09.2]} 49. Rh8+ {[%clk 0:00:20]} 49... Ke7 {[%clk
0:00:09.2]} 50. Rh7+ {[%clk 0:00:20.9]} 50... Kd8 {[%clk 0:00:09.4]} 51. h5
{[%clk 0:00:20.8]} 51... Rc4+ {[%clk 0:00:09.3]} 52. Kb3 {[%clk 0:00:21.3]}
52... Rd4 {[%clk 0:00:09.2]} 53. h6 {[%clk 0:00:22.2]} 53... Na4 {[%clk
0:00:07.6]} 54. Nxa4 {[%clk 0:00:21.5]} 1-0

[Event "*** Titled Tuesday Blitz"]
[Site "Chess.com"]
[Date "2020.04.14"]
[Round "7"]
[White "White_Ghost"]
[Black "ulkaf961"]
[Result "1-0"]
[WhiteElo "2464"]
[BlackElo "2238"]
[TimeControl "180+1"]
[EndTime "11:14:47 PDT"]
[Termination "White_Ghost won on time"]

1. d4 {[%clk 0:02:59.5]} 1... d5 {[%clk 0:02:59.4]} 2. c4 {[%clk 0:03:00.4]}
2... c6 {[%clk 0:02:59.3]} 3. cxd5 {[%clk 0:03:00.8]} 3... cxd5 {[%clk
0:02:59.2]} 4. Nc3 {[%clk 0:03:01.7]} 4... Nf6 {[%clk 0:02:58.7]} 5. Bf4 {[%clk
0:03:02.6]} 5... Bf5 {[%clk 0:02:57.6]} 6. e3 {[%clk 0:03:03.5]} 6... Nc6 {[%clk
0:02:55.8]} 7. Qb3 {[%clk 0:03:02.9]} 7... Na5 {[%clk 0:02:55.6]} 8. Qa4+ {[%clk
0:03:03.5]} 8... Bd7 {[%clk 0:02:55.4]} 9. Qc2 {[%clk 0:03:04.1]} 9... Rc8
{[%clk 0:02:53.7]} 10. Bd3 {[%clk 0:03:04.2]} 10... e6 {[%clk 0:02:50.7]} 11.
Nf3 {[%clk 0:03:04.2]} 11... Bb4 {[%clk 0:02:49.7]} 12. O-O {[%clk 0:03:03.3]}
12... Nc4 {[%clk 0:02:44.3]} 13. Bxc4 {[%clk 0:03:02.1]} 13... Rxc4 {[%clk
0:02:42.9]} 14. Ne5 {[%clk 0:03:02]} 14... Rc8 {[%clk 0:02:38.9]} 15. Rfc1
{[%clk 0:02:52]} 15... Bxc3 {[%clk 0:02:22.6]} 16. bxc3 {[%clk 0:02:50.8]} 16...
h6 {[%clk 0:02:22.8]} 17. c4 {[%clk 0:02:48.5]} 17... dxc4 {[%clk 0:02:15.6]}
18. Nxc4 {[%clk 0:02:46.9]} 18... O-O {[%clk 0:02:15.8]} 19. Qb2 {[%clk
0:02:43.5]} 19... b6 {[%clk 0:01:48.8]} 20. Nd6 {[%clk 0:02:40.5]} 20... Rxc1+
{[%clk 0:01:42]} 21. Rxc1 {[%clk 0:02:41.4]} 21... Nd5 {[%clk 0:01:42.4]} 22.
Bg3 {[%clk 0:02:40.7]} 22... Qg5 {[%clk 0:01:09.7]} 23. Qe2 {[%clk 0:02:20.1]}
23... h5 {[%clk 0:01:05.2]} 24. h4 {[%clk 0:02:18.4]} 24... Qg6 {[%clk
0:01:03.9]} 25. e4 {[%clk 0:02:17]} 25... Nf6 {[%clk 0:01:01.1]} 26. Rc7 {[%clk
0:02:16.2]} 26... Rd8 {[%clk 0:00:48.5]} 27. Rxa7 {[%clk 0:02:12.3]} 27... Bc6
{[%clk 0:00:46]} 28. e5 {[%clk 0:01:43]} 28... Ne4 {[%clk 0:00:41.4]} 29. Nxf7
{[%clk 0:01:24.9]} 29... Rxd4 {[%clk 0:00:40.9]} 30. Qc2 {[%clk 0:01:12.8]}
30... Bd7 {[%clk 0:00:15.5]} 31. Rxd7 {[%clk 0:01:06.2]} 31... Rxd7 {[%clk
0:00:14.9]} 32. Qc8+ {[%clk 0:01:05.6]} 32... Kxf7 {[%clk 0:00:11.9]} 33. Qxd7+
{[%clk 0:01:05.6]} 33... Kg8 {[%clk 0:00:12.6]} 34. Bf4 {[%clk 0:00:45.7]} 34...
Qf5 {[%clk 0:00:11.7]} 35. g3 {[%clk 0:00:43.5]} 35... Nc5 {[%clk 0:00:10.3]}
36. Qd8+ {[%clk 0:00:39.7]} 36... Kh7 {[%clk 0:00:09.7]} 37. Qxb6 {[%clk
0:00:40.6]} 37... Qc2 {[%clk 0:00:04.2]} 38. Be3 {[%clk 0:00:33.2]} 38... Qd1+
{[%clk 0:00:04.3]} 39. Kh2 {[%clk 0:00:30.3]} 39... Nd3 {[%clk 0:00:04.4]} 40.
Qd4 {[%clk 0:00:28.5]} 40... Qe2 {[%clk 0:00:03.5]} 41. Qe4+ {[%clk 0:00:20.5]}
41... Kg8 {[%clk 0:00:03.7]} 42. Qa8+ {[%clk 0:00:19.5]} 42... Kh7 {[%clk
0:00:03.9]} 43. Qe4+ {[%clk 0:00:19.8]} 43... Kg8 {[%clk 0:00:04.1]} 44. Qg2
{[%clk 0:00:19.8]} 44... Ne1 {[%clk 0:00:03.7]} 45. Qh1 {[%clk 0:00:19.1]} 45...
Nf3+ {[%clk 0:00:03.7]} 46. Kh3 {[%clk 0:00:19.4]} 46... Nxe5 {[%clk 0:00:02.7]}
47. Qa8+ {[%clk 0:00:19.4]} 47... Kf7 {[%clk 0:00:02.5]} 48. Qb7+ {[%clk
0:00:19.3]} 48... Kg8 {[%clk 0:00:02.7]} 49. Qb8+ {[%clk 0:00:18.9]} 49... Kh7
{[%clk 0:00:01.4]} 50. Qxe5 {[%clk 0:00:19.4]} 1-0

[Event "*** Titled Tuesday Blitz"]
[Site "Chess.com"]
[Date "2020.04.14"]
[Round "7"]
[White "GianmarcoVaR"]
[Black "rozabaku"]
[Result "1-0"]
[WhiteElo "2621"]
[BlackElo "2437"]
[TimeControl "180+1"]
[EndTime "11:14:50 PDT"]
[Termination "GianmarcoVaR won by checkmate"]

1. d4 {[%clk 0:03:00.9]} 1... Nf6 {[%clk 0:03:00]} 2. c4 {[%clk 0:03:00.1]} 2...
g6 {[%clk 0:03:00.4]} 3. Nf3 {[%clk 0:03:00.7]} 3... Bg7 {[%clk 0:03:00.5]} 4.
g3 {[%clk 0:03:01.6]} 4... d5 {[%clk 0:03:00.8]} 5. cxd5 {[%clk 0:03:00.3]} 5...
Nxd5 {[%clk 0:03:00.8]} 6. Bg2 {[%clk 0:03:01.2]} 6... O-O {[%clk 0:03:00.9]} 7.
Kf1 {[%clk 0:03:01.3]} 7... b6 {[%clk 0:03:00.4]} 8. h3 {[%clk 0:02:59]} 8...
Bb7 {[%clk 0:02:59.5]} 9. Kg1 {[%clk 0:02:58.8]} 9... Nd7 {[%clk 0:02:58.7]} 10.
Nbd2 {[%clk 0:02:55.9]} 10... c5 {[%clk 0:02:58.6]} 11. e4 {[%clk 0:02:52.5]}
11... Nb4 {[%clk 0:02:57.9]} 12. d5 {[%clk 0:02:51.8]} 12... Ne5 {[%clk
0:02:51.5]} 13. Nxe5 {[%clk 0:02:50.6]} 13... Bxe5 {[%clk 0:02:52.4]} 14. Nf3
{[%clk 0:02:51.1]} 14... Bg7 {[%clk 0:02:48.7]} 15. Kh2 {[%clk 0:02:50.4]} 15...
f5 {[%clk 0:02:47.7]} 16. Ng5 {[%clk 0:02:48.7]} 16... Qd7 {[%clk 0:02:42.2]}
17. Ne6 {[%clk 0:02:48.8]} 17... Rf7 {[%clk 0:02:21]} 18. a3 {[%clk 0:02:49.1]}
18... Na6 {[%clk 0:02:15.6]} 19. Nxg7 {[%clk 0:02:48.9]} 19... Kxg7 {[%clk
0:02:14.3]} 20. e5 {[%clk 0:02:49.2]} 20... e6 {[%clk 0:02:10.8]} 21. dxe6
{[%clk 0:02:46.7]} 21... Qxe6 {[%clk 0:02:10.2]} 22. Bxb7 {[%clk 0:02:33.9]}
22... Rxb7 {[%clk 0:02:11.1]} 23. Qf3 {[%clk 0:02:33.4]} 23... Re7 {[%clk
0:02:01.8]} 24. Qxa8 {[%clk 0:02:31.6]} 24... Nc7 {[%clk 0:01:53.9]} 25. Qf3
{[%clk 0:02:19.5]} 25... Qxe5 {[%clk 0:01:53.8]} 26. Bd2 {[%clk 0:02:15.6]}
26... Nb5 {[%clk 0:01:39.9]} 27. Rhe1 {[%clk 0:02:14.6]} 27... Qf6 {[%clk
0:01:35.5]} 28. Bc3 {[%clk 0:02:12.7]} 28... Nd4 {[%clk 0:01:32.1]} 29. Bxd4
{[%clk 0:02:11.9]} 29... cxd4 {[%clk 0:01:33]} 30. Rxe7+ {[%clk 0:00:40.5]}
30... Qxe7 {[%clk 0:01:33.9]} 31. Rd1 {[%clk 0:00:40.9]} 31... Qe5 {[%clk
0:01:20.9]} 32. Qf4 {[%clk 0:00:38.9]} 32... Qe2 {[%clk 0:01:14.9]} 33. Qxd4+
{[%clk 0:00:39.8]} 33... Kh6 {[%clk 0:01:13.7]} 34. Qh4+ {[%clk 0:00:31.5]}
34... Qh5 {[%clk 0:01:10.5]} 35. Qxh5+ {[%clk 0:00:28.9]} 35... Kxh5 {[%clk
0:01:11.4]} 36. Rd7 {[%clk 0:00:29.1]} 36... a5 {[%clk 0:01:08.1]} 37. Rb7
{[%clk 0:00:28.8]} 37... Kg5 {[%clk 0:01:03.6]} 38. Rxb6 {[%clk 0:00:19.8]}
38... h5 {[%clk 0:01:03.6]} 39. f4+ {[%clk 0:00:17.4]} 39... Kh6 {[%clk
0:01:03.4]} 40. Rb7 {[%clk 0:00:17.1]} 40... a4 {[%clk 0:01:02.3]} 41. Kg2
{[%clk 0:00:15.8]} 41... g5 {[%clk 0:01:00.4]} 42. fxg5+ {[%clk 0:00:12]} 42...
Kxg5 {[%clk 0:01:01.3]} 43. Kf3 {[%clk 0:00:09]} 43... h4 {[%clk 0:01:00.1]} 44.
gxh4+ {[%clk 0:00:06.5]} 44... Kxh4 {[%clk 0:00:59.3]} 45. Rb4+ {[%clk 0:00:05]}
45... Kg5 {[%clk 0:00:57.5]} 46. h4+ {[%clk 0:00:04]} 46... Kh5 {[%clk
0:00:57.4]} 47. Kg3 {[%clk 0:00:04.2]} 47... Kg6 {[%clk 0:00:57.3]} 48. Kf4
{[%clk 0:00:03.7]} 48... Kf6 {[%clk 0:00:57.9]} 49. Rb6+ {[%clk 0:00:03.5]}
49... Ke7 {[%clk 0:00:57.8]} 50. h5 {[%clk 0:00:02.7]} 50... Kf7 {[%clk
0:00:57.8]} 51. h6 {[%clk 0:00:02.9]} 51... Kf8 {[%clk 0:00:56.7]} 52. Kxf5
{[%clk 0:00:03]} 52... Ke7 {[%clk 0:00:55.2]} 53. Ra6 {[%clk 0:00:03.4]} 53...
Kf7 {[%clk 0:00:54.8]} 54. Ra7+ {[%clk 0:00:02.7]} 54... Kf8 {[%clk 0:00:54.4]}
55. Ke6 {[%clk 0:00:03.4]} 55... Kg8 {[%clk 0:00:54.2]} 56. Rxa4 {[%clk
0:00:04.3]} 56... Kh7 {[%clk 0:00:54.2]} 57. Rg4 {[%clk 0:00:05.2]} 57... Kxh6
{[%clk 0:00:55.1]} 58. Kf6 {[%clk 0:00:05.7]} 58... Kh5 {[%clk 0:00:55.3]} 59.
Re4 {[%clk 0:00:06.6]} 59... Kh6 {[%clk 0:00:55.2]} 60. Rh4# {[%clk 0:00:07.1]}
1-0